fUSD/lending_fUSD_20250804
["ID","MTS","AMOUNT","RATE_DAILY","PERIOD"]
[377201796,1754290221086,-935.48,0.00046575,120]
[377201797,1754290221120,-1101.74,0.00046575,120]
[377201798,1754290221153,-400.0,0.00046575,120]
[377201799,1754290221187,-1159.69,0.00046575,120]
[377201800,1754290221224,-400.0,0.00046575,120]
[377201801,1754290221258,-400.0,0.00046575,120]
[377201802,1754290221293,-400.0,0.00046575,120]
[377201803,1754290221327,-1876.25,0.00046575,120]
[377201804,1754290221362,-5826.35,0.00046575,120]
[377201805,1754290221397,-798.01,0.00046575,120]
[377201806,1754290221436,-400.0,0.00046575,120]
[377201807,1754290221470,-400.0,0.00046575,120]
[377201808,1754290221505,-400.0,0.00046575,120]
[377201809,1754290221540,-896.35,0.00046575,120]
[377201810,1754290221575,-400.0,0.00046575,120]
[377201811,1754290221610,-556.22,0.00046575,120]
[377201812,1754290221646,-400.0,0.00046575,120]
[377201813,1754290221682,-1601.38,0.00046575,120]
[377201814,1754290221715,-400.0,0.00046575,120]
[377201815,1754290221751,-607.9,0.00046575,120]
[377201816,1754290221785,-2561.99,0.00046575,14]
[377201817,1754290221820,-400.0,0.00046575,120]
[377201818,1754290221857,-400.0,0.00046575,120]
[377201819,1754290221891,-655.52,0.00046575,120]
[377201820,1754290221925,-1513.92,0.00046575,120]
[377201821,1754290221959,-400.0,0.00046575,120]
[377201822,1754290221994,-400.0,0.00046575,120]
[377201823,1754290222031,-485.14,0.00046575,120]
[377201824,1754290222067,-451.2,0.00046575,120]
[377201825,1754290222102,-1166.35,0.00046575,120]
[377201826,1754290222136,-400.0,0.00046575,120]
[377201827,1754290222170,-1364.42,0.00046575,120]
[377201828,1754290222204,-456.28,0.00046575,120]
[377201829,1754290222238,-400.0,0.00046575,120]
[377201830,1754290222273,-838.64,0.00046575,120]
[377201831,1754290222308,-1792.8,0.00046575,120]
[377201832,1754290223062,-1368.58,0.00046575,120]
[377201833,1754290223158,-517.54,0.00046575,120]
[377201834,1754290223186,-400.47752707,0.00046575,120]
[377201835,1754290223213,-660.82,0.00046575,120]
[377201836,1754290223240,-400.0,0.00046575,120]
[377201837,1754290223267,-400.0,0.00046575,120]
[377201838,1754290223294,-400.0,0.00046575,120]
[377201839,1754290223320,-1118.49,0.00046575,120]
[377201840,1754290223347,-400.0,0.00046575,120]
[377201841,1754290223372,-400.0,0.00046575,120]
[377201842,1754290223398,-89408.18,0.00046575,120]
[377201843,1754290223424,-400.0,0.00046575,120]
[377201844,1754290223451,-606.91,0.00046575,120]
[377201845,1754290223482,-1407.22,0.00046575,120]
[377201846,1754290223510,-400.0,0.00046575,120]
[377201847,1754290223539,-1091.37,0.00046575,120]
[377201848,1754290223569,-842.24,0.00046575,120]
[377201849,1754290223597,-400.0,0.00046575,120]
[377201850,1754290223624,-400.0,0.00046575,120]
[377201851,1754290223654,-400.0,0.00046575,120]
[377201852,1754290223685,-400.0,0.00046575,120]
[377201853,1754290223713,-1114.29,0.00046575,120]
[377201854,1754290223743,-500.0,0.00046575,120]
[377201855,1754290223772,-400.0,0.00046575,120]
[377201856,1754290223798,-400.0,0.00046575,120]
[377201857,1754290223830,-1162.46,0.00046575,120]
[377201858,1754290223861,-400.0,0.00046575,120]
[377201859,1754290223891,-641.89,0.00046575,120]
[377201860,1754290223919,-442.8,0.00046575,120]
[377201861,1754290223948,-400.0,0.00046575,120]
[377201862,1754290223975,-429.17,0.00046575,120]
[377201863,1754290224002,-400.0,0.00046575,120]
[377201864,1754290224029,-400.0,0.00046575,120]
[377201865,1754290224056,-471.39768456,0.00046575,120]
[377201866,1754290224083,-3089.74,0.00046575,120]
[377201867,1754290224109,-681.25,0.00046575,120]
[377201868,1754290224135,-203.3918934,0.00046575,120]
[377201869,1754290224163,-400.0,0.00046575,120]
[377201870,1754290224191,-400.0,0.00046575,120]
[377201871,1754290224216,-217.38351612,0.00046575,120]
[377201872,1754290224243,-400.0,0.00046575,120]
[377201873,1754290224269,-1045.87,0.00046575,120]
[377201874,1754290224295,-735.44,0.00046575,120]
[377201875,1754290224321,-400.0,0.00046575,120]
[377201876,1754290224347,-512.16,0.00046575,120]
[377201877,1754290224374,-7487.46,0.00046575,120]
[377201878,1754290224400,-1620.5,0.00046575,120]
[377201879,1754290224427,-1146.08,0.00046575,120]
[377201880,1754290224453,-489.98014498,0.00046575,120]
[377201881,1754290224480,-281.62817952,0.00046575,120]
[377201882,1754290224509,-400.0,0.00046575,120]
[377201883,1754290224536,-1108.92,0.00046575,120]
[377201884,1754290224566,-571.07,0.00046575,120]
[377201885,1754290224595,-402.63469294,0.00046575,120]
[377201886,1754290224623,-400.0,0.00046575,120]
[377201887,1754290224652,-4191.81,0.00046575,120]
[377201888,1754290224679,-706.49,0.00046575,120]
[377201889,1754290224708,-997.82,0.00046575,120]
[377201890,1754290224735,-400.0,0.00046575,120]
[377201891,1754290224762,-80099.0371,0.00046579,2]
[377201892,1754290224790,-194.37614916,0.0004659,15]
[377201893,1754290224817,-507.657,0.0004659,2]
[377201894,1754290224843,-4137.0,0.0004659,2]
[377201895,1754290224870,-465.151,0.0004659,2]
[377201896,1754290224896,-809.0,0.0004659,2]
[377201897,1754290224923,-1169.0,0.0004659,2]
[377201898,1754290224954,-519.33329631,0.00046632,15]
[377201899,1754290224982,-963.22546012,0.00046649,30]
[377201900,1754290225009,-194.37614916,0.0004665,15]
[377201901,1754290225038,-1381.17811143,0.00046679,2]
[377201902,1754290225068,-150.0,0.00046692,7]
[377201903,1754290225096,-1112.34,0.000467,45]
[377201904,1754290225123,-194.37614916,0.0004671,15]
[377201905,1754290225150,-400.0,0.00046746,120]
[377201906,1754290225177,-401.23909468,0.00046746,120]
[377201907,1754290225203,-400.0,0.00046746,2]
[377201908,1754290225229,-275.69068579,0.00046746,120]
[377201909,1754290225258,-400.0,0.00046746,120]
[377201910,1754290225285,-400.88591507,0.00046746,120]
[377201911,1754290225312,-1113.33,0.00046746,120]
[377201912,1754290225343,-400.0,0.00046746,120]
[377201913,1754290225373,-489.67,0.00046746,120]
[377201914,1754290225399,-400.0,0.00046746,120]
[377201915,1754290225427,-400.0,0.00046746,120]
[377201916,1754290225454,-400.0,0.00046746,120]
[377201917,1754290225482,-400.0,0.00046746,120]
[377201918,1754290225509,-6842.01,0.00046746,120]
[377201919,1754290225536,-617.7,0.00046747,120]
[377201920,1754290225562,-400.0,0.00046747,120]
[377201921,1754290225588,-562.27,0.00046747,120]
[377201922,1754290225615,-400.0,0.00046747,120]
[377201923,1754290225645,-500.92,0.00046747,120]
[377201924,1754290225672,-400.0,0.00046747,120]
[377201925,1754290225699,-1744.82,0.00046747,120]
[377201926,1754290225725,-1361.4,0.00046747,120]
[377201927,1754290225754,-669.57,0.00046747,120]
[377201928,1754290225783,-1817.69,0.00046747,120]
[377201929,1754290225811,-579.33,0.00046747,120]
[377201930,1754290225838,-400.0,0.00046747,120]
[377201931,1754290225866,-500.0,0.00046747,120]
[377201932,1754290225893,-400.0,0.00046747,120]
[377201933,1754290225921,-490.79,0.00046747,120]
[377201934,1754290225949,-400.0,0.00046747,120]
[377201935,1754290225976,-331.31964955,0.00046747,120]
[377201936,1754290226005,-400.0,0.00046747,120]
[377201937,1754290226031,-400.0,0.00046747,120]
[377201938,1754290226057,-400.0,0.00046747,120]
[377201939,1754290226084,-1185.13,0.00046747,120]
[377201940,1754290226110,-809.06,0.00046747,120]
[377201941,1754290226137,-1226.73,0.00046747,120]
[377201942,1754290226163,-1863.87,0.00046747,120]
[377201943,1754290226191,-500.0,0.00046747,120]
[377201944,1754290226219,-971.64,0.00046747,120]
[377201945,1754290226245,-1351.39,0.00046747,120]
[377201946,1754290226273,-444.66,0.00046747,120]
[377201947,1754290226301,-491.07,0.00046748,120]
[377201948,1754290226329,-572.97,0.00046748,120]
[377201949,1754290226356,-609.61,0.00046748,120]
[377201950,1754290226383,-400.0,0.00046748,120]
[377201951,1754290226412,-451.64,0.00046748,120]
[377201952,1754290226438,-544.95,0.00046748,120]
[377201953,1754290226464,-986.39,0.00046748,120]
[377201954,1754290226490,-1150.1,0.00046748,120]
[377201955,1754290226518,-1000.0,0.00046748,120]
[377201956,1754290226544,-551.91,0.00046748,120]
[377201957,1754290226572,-407.52,0.00046748,120]
[377201958,1754290226814,-708.22,0.00046748,120]
[377201959,1754290226842,-400.0,0.00046748,120]
[377201960,1754290226871,-400.0,0.00046748,120]
[377201961,1754290226901,-433.19,0.00046748,120]
[377201962,1754290226927,-400.0,0.00046748,120]
[377201963,1754290226955,-446.59,0.00046748,120]
[377201964,1754290226985,-1175.06,0.00046748,120]
[377201965,1754290227016,-400.0,0.00046748,120]
[377201966,1754290227044,-390.08210582,0.00046748,120]
[377201967,1754290227071,-875.84,0.00046748,120]
[377201968,1754290227099,-1081.24,0.00046748,120]
[377201969,1754290227126,-400.0,0.00046748,120]
[377201970,1754290227153,-1125.71,0.00046748,120]
[377201971,1754290227181,-400.0,0.00046748,120]
[377201972,1754290227207,-1075.11,0.00046748,120]
[377201973,1754290227241,-1135.97,0.00046748,120]
[377201974,1754290227271,-837.31,0.00046748,120]
[377201975,1754290227299,-631.71,0.00046748,120]
[377201976,1754290227326,-400.0,0.00046748,120]
[377201977,1754290227354,-400.0,0.00046748,120]
[377201978,1754290227382,-400.0,0.00046748,120]
[377201979,1754290227410,-400.0,0.00046748,120]
[377201980,1754290227440,-294.05839811,0.00046748,120]
[377201981,1754290227468,-943.05,0.00046748,120]
[377201982,1754290227496,-874.81,0.00046748,120]
[377201983,1754290227525,-710.83,0.00046748,120]
[377201984,1754290227551,-400.0,0.00046748,120]
[377201985,1754290227577,-962.78,0.00046748,120]
[377201986,1754290227603,-521.3,0.00046748,120]
[377201987,1754290227630,-1665.02,0.00046748,120]
[377201988,1754290227658,-1123.16,0.00046748,120]
[377201989,1754290227685,-1203.56,0.00046748,120]
[377201990,1754290227713,-400.0,0.00046748,120]
[377201991,1754290227741,-1304.29,0.00046748,120]
[377201992,1754290227769,-498.27,0.00046748,120]
[377201993,1754290227798,-1203.79,0.00046748,120]
[377201994,1754290227827,-1029.19,0.00046748,120]
[377201995,1754290227855,-804.54,0.00046748,120]
[377201996,1754290227880,-271.04740599,0.00046748,120]
[377201997,1754290227907,-902.84,0.00046748,120]
[377201998,1754290227933,-439.27,0.00046748,120]
[377201999,1754290227959,-1564.15,0.00046748,120]
[377202000,1754290227989,-150.0,0.00046768,7]
[377202001,1754290228018,-194.37614916,0.00046771,15]
[377202002,1754290228045,-519.33329631,0.00046791,15]
[377202003,1754290228073,-174.87,0.00046795,30]
[377202004,1754290228100,-172.84,0.00046795,30]
[377202005,1754290228128,-8000.0,0.000468,120]
[377202006,1754290228155,-1106.18,0.00046801,2]
[377202007,1754290228185,-500.0,0.00046801,120]
[377202008,1754290228215,-708.8,0.00046801,120]
[377202009,1754290228243,-500.0,0.00046801,120]
[377202010,1754290228272,-500.0,0.00046801,2]
[377202011,1754290228301,-500.0,0.00046801,120]
[377202012,1754290228329,-500.0,0.00046801,120]
[377202013,1754290228356,-500.0,0.00046801,120]
[377202014,1754290228383,-500.0,0.00046801,120]
[377202015,1754290228410,-500.0,0.00046801,120]
[377202016,1754290228436,-290.90298831,0.00046812,2]
[377202017,1754290228466,-150.0,0.0004682,7]
[377202018,1754290228496,-150.0,0.00046823,7]
[377202019,1754290228524,-194.37614916,0.00046831,15]
[377202020,1754290228556,-150.0,0.00046832,7]
[377202021,1754290228794,-1524.41139706,0.00046834,2]
[377202022,1754290228822,-1106.18,0.00046836,2]
[377202023,1754290228850,-500.0,0.00046836,120]
[377202024,1754290228876,-708.8,0.00046836,120]
[377202025,1754290228903,-227.29591168,0.00046836,120]
[377202026,1754290228929,-500.0,0.00046836,2]
[377202027,1754290228955,-569.23260203,0.00046836,120]
[377202028,1754290228982,-500.0,0.00046836,120]
[377202029,1754290229011,-500.0,0.00046836,120]
[377202030,1754290229039,-500.0,0.00046836,120]
[377202031,1754290229066,-500.0,0.00046836,120]
[377202032,1754290229092,-493.69,0.00046838,120]
[377202033,1754290229120,-300.83331014,0.00046838,120]
[377202034,1754290229147,-833.11,0.00046838,120]
[377202035,1754290229182,-1489.68,0.00046838,120]
[377202036,1754290229209,-491.07,0.00046838,120]
[377202037,1754290229235,-432.95,0.00046838,120]
[377202038,1754290229264,-1113.83,0.00046838,120]
[377202039,1754290229291,-400.0,0.00046838,120]
[377202040,1754290229318,-406.65,0.00046838,120]
[377202041,1754290229344,-400.0,0.00046838,120]
[377202042,1754290229369,-1000.0,0.00046838,120]
[377202043,1754290229395,-560.64,0.00046838,120]
[377202044,1754290229420,-400.0,0.00046838,120]
[377202045,1754290229446,-400.0,0.00046838,120]
[377202046,1754290229472,-400.0,0.00046838,120]
[377202047,1754290229500,-710.83,0.00046838,120]
[377202048,1754290229527,-400.0,0.00046838,120]
[377202049,1754290229556,-649.27,0.00046838,120]
[377202050,1754290229586,-552.88,0.00046838,120]
[377202051,1754290229615,-468.7,0.00046838,120]
[377202052,1754290229644,-500.0,0.00046846,120]
[377202053,1754290229672,-500.0,0.00046846,120]
[377202054,1754290229701,-500.0,0.00046846,120]
[377202055,1754290229730,-500.0,0.00046846,120]
[377202056,1754290229761,-500.0,0.00046846,120]
[377202057,1754290229789,-500.0,0.00046846,120]
[377202058,1754290229818,-500.0,0.00046846,120]
[377202059,1754290229844,-500.0,0.00046846,120]
[377202060,1754290229871,-463.23960432,0.00046846,120]
[377202061,1754290229897,-500.0,0.00046846,120]
[377202062,1754290229926,-1185.13,0.00046846,120]
[377202063,1754290229953,-349.67309672,0.00046846,120]
[377202064,1754290229981,-208.91728259,0.00046847,120]
[377202065,1754290230008,-400.0,0.00046847,120]
[377202066,1754290230035,-461.75027641,0.00046847,120]
[377202067,1754290230061,-400.0,0.00046847,120]
[377202068,1754290230087,-400.0,0.00046847,120]
[377202069,1754290230112,-400.0,0.00046847,120]
[377202070,1754290230138,-400.0,0.00046847,120]
[377202071,1754290230164,-400.0,0.00046847,120]
[377202072,1754290230192,-400.0,0.00046847,120]
[377202073,1754290230220,-400.0,0.00046847,120]
[377202074,1754290230247,-400.0,0.00046847,120]
[377202075,1754290230275,-400.0,0.00046847,120]
[377202076,1754290230302,-402.86794806,0.00046847,120]
[377202077,1754290230329,-400.0,0.00046847,120]
[377202078,1754290230356,-525.69173418,0.00046847,120]
[377202079,1754290230382,-400.60341579,0.00046847,120]
[377202080,1754290230410,-400.0,0.00046847,120]
[377202081,1754290230440,-400.0,0.00046847,120]
[377202082,1754290230467,-169.28776034,0.00046847,120]
[377202083,1754290230492,-402.44416534,0.00046847,120]
[377202084,1754290230518,-500.0,0.00046847,120]
[377202085,1754290230543,-400.0,0.00046847,120]
[377202086,1754290230569,-400.0,0.00046847,120]
[377202087,1754290230596,-400.0,0.00046847,16]
[377202088,1754290230622,-400.0,0.00046847,120]
[377202089,1754290230652,-400.0,0.00046847,120]
[377202090,1754290230679,-400.0,0.00046847,120]
[377202091,1754290230707,-400.47528757,0.00046847,120]
[377202092,1754290230974,-400.0,0.00046847,120]
[377202093,1754290231004,-401.92044167,0.00046847,120]
[377202094,1754290231035,-401.27796363,0.00046847,120]
[377202095,1754290231063,-1106.18,0.00046847,2]
[377202096,1754290231093,-400.0,0.00046847,120]
[377202097,1754290231120,-403.1200295,0.00046847,120]
[377202098,1754290231146,-400.0,0.00046847,120]
[377202099,1754290231172,-401.48522162,0.00046847,120]
[377202100,1754290231197,-400.0,0.00046847,120]
[377202101,1754290231224,-500.0,0.00046847,120]
[377202102,1754290231250,-708.8,0.00046847,120]
[377202103,1754290231276,-401.8600715,0.00046847,120]
[377202104,1754290231302,-336.58143132,0.00046847,120]
[377202105,1754290231328,-355.4652028,0.00046847,120]
[377202106,1754290231353,-810.73,0.00046847,120]
[377202107,1754290231380,-400.0,0.00046847,120]
[377202108,1754290231409,-553.44,0.00046847,120]
[377202109,1754290231438,-400.0,0.00046847,120]
[377202110,1754290231464,-253.37202176,0.00046847,120]
[377202111,1754290231494,-400.0,0.00046847,120]
[377202112,1754290231521,-1300.3,0.00046847,120]
[377202113,1754290231551,-401.57748257,0.00046847,120]
[377202114,1754290231579,-434.68,0.00046847,120]
[377202115,1754290231605,-400.0,0.00046847,120]
[377202116,1754290231635,-541.84,0.00046847,120]
[377202118,1754290231665,-400.0,0.00046847,120]
[377202119,1754290231692,-408.37,0.00046847,120]
[377202120,1754290231719,-1759.94,0.00046847,120]
[377202121,1754290231749,-401.75652078,0.00046847,120]
[377202122,1754290231775,-400.0,0.00046847,120]
[377202123,1754290231804,-401.19190915,0.00046847,120]
[377202124,1754290231831,-400.0,0.00046847,120]
[377202125,1754290231857,-582.47,0.00046847,120]
[377202126,1754290231883,-400.0,0.00046847,120]
[377202127,1754290231910,-1347.1,0.00046847,120]
[377202128,1754290231936,-500.0,0.00046847,2]
[377202129,1754290231964,-1497.43,0.00046847,120]
[377202130,1754290231991,-444.33,0.00046847,120]
[377202131,1754290232021,-1797.51,0.00046847,120]
[377202132,1754290232048,-679.34,0.00046847,120]
[377202133,1754290232074,-400.0,0.00046847,120]
[377202134,1754290232100,-400.0,0.00046847,120]
[377202135,1754290232128,-1300.22,0.00046847,120]
[377202136,1754290232155,-867.82,0.00046847,120]
[377202138,1754290232181,-400.0,0.00046847,120]
[377202139,1754290232207,-536.03,0.00046847,120]
[377202140,1754290232234,-400.0,0.00046847,120]
[377202141,1754290232263,-1159.47,0.00046847,120]
[377202142,1754290232290,-1498.69,0.00046847,120]
[377202143,1754290232317,-1082.83,0.00046847,120]
[377202144,1754290232343,-447.19,0.00046847,120]
[377202145,1754290232370,-715.03,0.00046847,120]
[377202146,1754290232399,-878.68,0.00046847,120]
[377202147,1754290232425,-1095.01,0.00046847,120]
[377202148,1754290232452,-565.86,0.00046847,120]
[377202150,1754290232479,-676.02,0.00046847,120]
[377202151,1754290232507,-1199.94,0.00046847,120]
[377202152,1754290232533,-543.84,0.00046847,120]
[377202155,1754290232561,-629.68,0.00046847,120]
[377202159,1754290232588,-2268.23,0.00046847,120]
[377202163,1754290232616,-400.0,0.00046847,120]
[377202166,1754290232643,-497.21,0.00046847,120]
[377202170,1754290232680,-400.0,0.00046847,120]
[377202174,1754290232709,-411.22,0.00046847,120]
[377202178,1754290232738,-518.84,0.00046847,120]
[377202182,1754290232768,-463.73,0.00046847,120]
[377202186,1754290232796,-578.38,0.00046847,120]
[377202190,1754290232822,-500.0,0.00046847,120]
[377202193,1754290232848,-703.1,0.00046847,120]
[377202197,1754290232874,-387.89566673,0.00046847,120]
[377202201,1754290232900,-400.0,0.00046847,120]
[377202204,1754290232926,-400.0,0.00046847,120]
[377202208,1754290232952,-400.0,0.00046847,120]
[377202212,1754290232979,-400.0,0.00046847,120]
[377202215,1754290233005,-400.0,0.00046847,120]
[377202219,1754290233035,-400.0,0.00046847,120]
[377202223,1754290233063,-400.0,0.00046847,120]
[377202226,1754290233091,-987.9,0.00046847,120]
[377202230,1754290233119,-400.0,0.00046847,120]
[377202234,1754290233147,-400.0,0.00046847,120]
[377202238,1754290233176,-444.77,0.00046847,120]
[377202242,1754290233207,-400.0,0.00046847,120]
[377202246,1754290233235,-807.78,0.00046847,120]
[377202249,1754290233265,-400.0,0.00046847,120]
[377202253,1754290233303,-400.0,0.00046847,120]
[377202257,1754290233331,-965.01,0.00046847,120]
[377202260,1754290233357,-604.76,0.00046847,120]
[377202264,1754290233384,-400.0,0.00046847,120]
[377202268,1754290233410,-400.0,0.00046847,120]
[377202272,1754290233437,-852.5,0.00046847,120]
[377202276,1754290233464,-400.0,0.00046847,120]
[377202279,1754290233491,-834.0,0.00046847,120]
[377202283,1754290233518,-666.91,0.00046847,120]
[377202287,1754290233546,-1125.68,0.00046847,120]
[377202291,1754290233573,-434.85,0.00046847,120]
[377202295,1754290233599,-1398.86,0.00046847,120]
[377202298,1754290233627,-1014.5,0.00046847,120]
[377202299,1754290233656,-400.0,0.00046847,120]
[377202300,1754290233683,-400.0,0.00046847,120]
[377202301,1754290233710,-500.0,0.00046847,120]
[377202302,1754290233738,-421.68,0.00046847,120]
[377202305,1754290233767,-1119.51,0.00046847,120]
[377202310,1754290233801,-500.0,0.00046847,120]
[377202314,1754290233836,-400.0,0.00046847,120]
[377202318,1754290233867,-719.07,0.00046847,120]
[377202322,1754290233894,-583.14,0.00046847,120]
[377202326,1754290233923,-1193.25,0.00046847,120]
[377202330,1754290233951,-400.0,0.00046847,120]
[377202334,1754290233979,-1684.73,0.00046847,120]
[377202338,1754290234007,-400.0,0.00046847,120]
[377202341,1754290234038,-1144.48,0.00046847,120]
[377202345,1754290234066,-497.01,0.00046847,120]
[377202349,1754290234094,-1385.55,0.00046847,120]
[377202353,1754290234124,-711.19,0.00046847,120]
[377202356,1754290234154,-1677.71,0.00046847,120]
[377202360,1754290234184,-1070.14,0.00046847,120]
[377202363,1754290234214,-400.0,0.00046847,120]
[377202364,1754290234245,-400.0,0.00046847,120]
[377202365,1754290234277,-813.29,0.00046847,120]
[377202366,1754290234312,-400.0,0.00046847,120]
[377202367,1754290234340,-400.0,0.00046847,120]
[377202368,1754290234368,-400.0,0.00046847,120]
[377202369,1754290234400,-400.0,0.00046847,120]
[377202370,1754290234429,-400.4496629,0.00046847,120]
[377202371,1754290234456,-1186.51,0.00046847,120]
[377202372,1754290234484,-400.0,0.00046847,120]
[377202373,1754290234515,-1282.55,0.00046847,120]
[377202374,1754290234544,-400.0,0.00046847,120]
[377202375,1754290234574,-428.3,0.00046847,120]
[377202376,1754290234603,-500.0,0.00046847,120]
[377202377,1754290234633,-943.82,0.00046847,120]
[377202378,1754290234662,-400.0,0.00046848,120]
[377202379,1754290234690,-400.0,0.00046848,120]
[377202380,1754290235105,-402.2295408,0.00046848,120]
[377202381,1754290235135,-400.0,0.00046848,120]
[377202382,1754290235161,-400.0,0.00046848,120]
[377202383,1754290235188,-400.0,0.00046848,120]
[377202384,1754290235215,-400.0,0.00046848,120]
[377202385,1754290235242,-400.0,0.00046848,120]
[377202386,1754290235269,-400.0,0.00046848,5]
[377202387,1754290235302,-400.0,0.00046848,120]
[377202388,1754290235331,-400.0,0.00046848,120]
[377202389,1754290235362,-435.54108708,0.00046848,120]
[377202390,1754290235390,-400.0,0.00046848,120]
[377202391,1754290235420,-400.0,0.00046848,120]
[377202392,1754290235446,-311.42467375,0.00046848,120]
[377202393,1754290235472,-400.0,0.00046848,120]
[377202394,1754290235499,-150.407077,0.00046848,120]
[377202395,1754290235527,-1086.12,0.00046848,120]
[377202396,1754290235555,-606.53,0.00046848,120]
[377202397,1754290235581,-400.0,0.00046848,120]
[377202398,1754290235607,-500.0,0.00046848,120]
[377202399,1754290235633,-402.92,0.00046848,120]
[377202400,1754290235661,-400.0,0.00046848,120]
[377202401,1754290235688,-1022.63,0.00046848,120]
[377202402,1754290235714,-400.0,0.00046848,120]
[377202403,1754290235740,-1517.31,0.00046848,120]
[377202404,1754290235768,-2719.87,0.00046848,118]
[377202405,1754290235795,-400.0,0.00046848,120]
[377202406,1754290235822,-1594.58,0.00046848,120]
[377202407,1754290235849,-1185.13,0.00046848,120]
[377202408,1754290235878,-7975.55,0.00046848,120]
[377202409,1754290235904,-657.36,0.00046848,120]
[377202410,1754290235932,-642.79,0.00046848,120]
[377202411,1754290235961,-614.98,0.00046848,120]
[377202412,1754290235989,-400.0,0.00046849,120]
[377202413,1754290236018,-400.0,0.00046849,120]
[377202414,1754290236046,-400.0,0.00046849,120]
[377202415,1754290236076,-400.0,0.00046849,120]
[377202416,1754290236103,-400.0,0.00046849,120]
[377202417,1754290236131,-543.93561914,0.00046849,120]
[377202418,1754290236160,-400.0,0.00046849,120]
[377202419,1754290236187,-400.0,0.00046849,120]
[377202420,1754290236214,-400.0,0.00046849,120]
[377202421,1754290236242,-400.0,0.00046849,120]
[377202422,1754290236269,-400.0,0.00046849,120]
[377202423,1754290236296,-400.0,0.00046849,120]
[377202424,1754290236330,-400.0,0.00046849,120]
[377202425,1754290236357,-482.61,0.00046849,120]
[377202426,1754290236383,-529.97,0.00046849,120]
[377202427,1754290236410,-1620.23,0.00046849,120]
[377202428,1754290236437,-902.87,0.00046849,120]
[377202429,1754290236465,-1428.49,0.00046849,120]
[377202430,1754290236494,-1010.32,0.00046849,120]
[377202431,1754290236521,-400.0,0.00046849,120]
[377202432,1754290236549,-546.1,0.00046849,120]
[377202433,1754290236575,-471.63,0.00046849,120]
[377202434,1754290236602,-400.0,0.00046849,120]
[377202435,1754290236646,-400.0,0.00046849,120]
[377202436,1754290236678,-400.0,0.00046849,120]
[377202437,1754290236707,-584.1,0.00046849,120]
[377202438,1754290236739,-400.0,0.00046849,120]
[377202439,1754290236767,-400.0,0.00046849,120]
[377202440,1754290236794,-400.0,0.00046849,120]
[377202441,1754290236823,-821.79,0.00046849,120]
[377202442,1754290236850,-681.43,0.00046849,120]
[377202443,1754290236877,-400.0,0.00046849,120]
[377202444,1754290236905,-400.0,0.00046849,120]
[377202445,1754290236933,-850.09,0.00046849,120]
[377202446,1754290236961,-400.0,0.00046849,120]
[377202447,1754290236988,-400.0,0.00046849,120]
[377202448,1754290237015,-400.0,0.00046849,7]
[377202449,1754290237043,-400.0,0.00046849,120]
[377202450,1754290237070,-1614.75,0.00046849,120]